{"text_format":"1","workbook":"xlsx","n_sheets":1,"sheets":["график"],"not_rendered":{"charts":0,"images":0,"macros":1,"external_links":1,"defined_names":205,"comments":1,"pivot_tables":0},"unopened":[],"bounds":{"document_bytes":16777216,"sheet_cells":100000,"rows_first":2000,"rows_last":500,"rows_between":2000,"halvings":0,"cell_chars":16384,"cell_head_chars":4096},"cells_cut":0,"cells_raw":0,"read":"whole","date_system":"1900"}

{"sheet":"график","index":0,"n_rows":15,"n_cols":70,"rows_kept":15,"cut":false,"hidden":false,"merged":[[1,1,1,19],[0,17,0,27],[0,28,0,29],[3,36,3,38],[4,36,4,38],[36,13,36,32],[34,17,34,32],[35,17,35,32],[2,37,2,38],[5,36,13,69],[1,20,1,23]]}
[null,null,null,null,null,null,null,null,null,null,null,null,null,null,null,null,null,"               \"         \" _____________________________ ",null,null,null,null,null,null,null,null,null,null,2016,null,"г."]
[null,"График на",null,null,null,null,null,null,null,null,null,null,null,null,null,null,null,null,null,null,"июль"]
["№ п/п","Ф.И.О.",1,2,3,4,5,6,7,8,9,10,11,12,13,14,15,16,17,18,19,20,21,22,23,24,25,26,27,28,{"$f":"IF(BP3=\"\",\"\",AD3+1)","v":29},{"$f":"IF(BQ3=\"\",\"\",AE3+1)","v":30},{"$f":"IF(BR3=\"\",\"\",AF3+1)","v":31},"январь",1,2016,"№ п/п","Ф.И.О.",null,{"$f":"DATE(AC1,VLOOKUP(U2,AH$3:AI$11,2,),1)","v":"2016-07-01"},{"$f":"AN3+1","v":"2016-07-02"},{"$f":"AO3+1","v":"2016-07-03"},"2016-07-04","2016-07-05","2016-07-06","2016-07-07","2016-07-08","2016-07-09","2016-07-10","2016-07-11","2016-07-12","2016-07-13","2016-07-14","2016-07-15","2016-07-16","2016-07-17","2016-07-18","2016-07-19","2016-07-20","2016-07-21","2016-07-22","2016-07-23","2016-07-24","2016-07-25","2016-07-26","2016-07-27","2016-07-28",{"$f":"IF(EOMONTH($AN$3,0)>=BO3+1,BO3+1,\"\")","v":"2016-07-29"},{"$f":"IF(BP3=\"\",\"\",IF(EOMONTH($AN$3,0)>=BP3+1,BP3+1,\"\"))","v":"2016-07-30"},{"$f":"IF(BQ3=\"\",\"\",IF(EOMONTH($AN$3,0)>=BQ3+1,BQ3+1,\"\"))","v":"2016-07-31"}]
[1,null,null,null,null,null,null,null,null,null,null,null,null,null,null,null,null,null,null,null,null,null,null,null,null,null,null,null,null,null,null,null,null,"февраль",2,2017,"порядковый № дня недели с вскр по пн",null,null,{"$f":"WEEKDAY(AN3)","v":6},{"$f":"WEEKDAY(AO3)","v":7},1,2,3,4,5,6,7,1,2,3,4,5,6,7,1,2,3,4,5,6,7,1,2,3,4,5,6,7,1]
[2,null,null,null,null,null,null,null,null,null,null,null,null,null,null,null,null,null,null,null,null,null,null,null,null,null,null,null,null,null,null,null,null,"март",3,2018,"дни недели",null,null,{"$f":"IF(AN4=1,\"вскр\",IF(AN4=2,\"пн\",IF(AN4=3,\"вт\",IF(AN4=4,\"ср\",IF(AN4=5,\"чт\",IF(AN4=6,\"пт\",IF(AN4=7,\"сб\")))))))","v":"пт"},{"$f":"IF(AO4=1,\"вскр\",IF(AO4=2,\"пн\",IF(AO4=3,\"вт\",IF(AO4=4,\"ср\",IF(AO4=5,\"чт\",IF(AO4=6,\"пт\",IF(AO4=7,\"сб\")))))))","v":"сб"},"вскр","пн","вт","ср","чт","пт","сб","вскр","пн","вт","ср","чт","пт","сб","вскр","пн","вт","ср","чт","пт","сб","вскр","пн","вт","ср","чт","пт","сб","вскр"]
[3,null,null,null,null,null,null,null,null,null,null,null,null,null,null,null,null,null,null,null,null,null,null,null,null,null,null,null,null,null,null,null,null,"апрель",4,2019,"диапазон столбцов AH:BR скрыта для просмотра в оригинале."]
[4,null,null,null,null,null,null,null,null,null,null,null,null,null,null,null,null,null,null,null,null,null,null,null,null,null,null,null,null,null,null,null,null,"май",5,2020]
[5,null,null,null,null,null,null,null,null,null,null,null,null,null,null,null,null,null,null,null,null,null,null,null,null,null,null,null,null,null,null,null,null,"июнь",6,2021]
[6,null,null,null,null,null,null,null,null,null,null,null,null,null,null,null,null,null,null,null,null,null,null,null,null,null,null,null,null,null,null,null,null,"июль",7,2022]
[7,null,null,null,null,null,null,null,null,null,null,null,null,null,null,null,null,null,null,null,null,null,null,null,null,null,null,null,null,null,null,null,null,"август",8,2023]
[8,null,null,null,null,null,null,null,null,null,null,null,null,null,null,null,null,null,null,null,null,null,null,null,null,null,null,null,null,null,null,null,null,"сентябрь",9,2024]
[9,null,null,null,null,null,null,null,null,null,null,null,null,null,null,null,null,null,null,null,null,null,null,null,null,null,null,null,null,null,null,null,null,"октябрь",10,2025]
[10,null,null,null,null,null,null,null,null,null,null,null,null,null,null,null,null,null,null,null,null,null,null,null,null,null,null,null,null,null,null,null,null,"ноябрь",11,2026]
[11,null,null,null,null,null,null,null,null,null,null,null,null,null,null,null,null,null,null,null,null,null,null,null,null,null,null,null,null,null,null,null,null,"декабрь",12,2027]
[null,null,null,null,null,null,null,null,null,null,null,null,null,null,null,null,null,null,null,null,null,null,null,null,null,null,null,null,null,null,null,null,null,{"$f":"DAY(DATE(AC1,MATCH(U2,AH3:AH14,)+1,1)-1)","v":31}]